{"text_format":"1","workbook":"xlsx","n_sheets":2,"sheets":["リスト","別表４"],"not_rendered":{"charts":0,"images":0,"macros":1,"external_links":0,"defined_names":11,"comments":0,"pivot_tables":0},"unopened":[],"bounds":{"document_bytes":16777216,"sheet_cells":100000,"rows_first":2000,"rows_last":500,"rows_between":2000,"halvings":0,"cell_chars":16384,"cell_head_chars":4096},"cells_cut":0,"cells_raw":0,"read":"whole","date_system":"1900"}

{"sheet":"リスト","index":0,"n_rows":14,"n_cols":9,"rows_kept":14,"cut":false,"hidden":true,"merged":[]}
[]
[null,"プルダウンメニューリスト"]
[]
[null,"公共工事等又は物品役務等の区分","契約の相手方の区分","一般競争入札・指名競争入札の別","総合評価落札方式実施の別","随意契約の区分","随意契約の見直し","見直し実施年度","一括調達形態"]
[1,"公共工事等","所管公益法人","一般競争入札","総合評価実施","企画競争","引き続き競争入札，企画競争又は公募を実施","平成24年度","近隣官署一括"]
[2,"物品役務等","その他の公益法人","指名競争入札","価格競争","公募","事務・事業の中止","平成25年度","合同庁舎一括"]
[3,null,"独立行政法人等",null,null,"不落・不調による随意契約","競争入札に移行","平成26年度以降","管区一括"]
[4,null,"特殊法人等",null,null,"契約の性質又は目的が競争を許さない場合","企画競争に移行"]
[5,null,"特定民間法人等",null,null,"緊急の必要により競争に付することができない場合","公募に移行"]
[6,null,"その他の法人等",null,null,"競争に付することが不利と認められる場合","随意契約によらざるを得ないもの"]
[7,null,null,null,null,"特例政令に該当する場合"]
[8,null,null,null,null,"秘密随意契約"]
[9,null,null,null,null,"随意契約（その他）"]
[10]

{"sheet":"別表４","index":1,"n_rows":43,"n_cols":11,"rows_kept":43,"cut":false,"hidden":false,"merged":[[0,0,0,10]]}
["公共調達の適正化について（平成18年8月25日付財計第2017号）に基づく随意契約に係る情報の公表（物品役務等）"]
[null,null,null,null,null,null,null,null,null,null,"令和6年10月分"]
["No.","物品役務等の名称及び数量","契約担当官等の氏名並びにその所属する部局の名称及び所在地","契約を締結した日","契約の相手方の商号又は名称及び住所","法人番号","随意契約によることとした会計法令の根拠条文及び理由\n（企画競争又は公募）","予定価格（円）\n（税込）","契約金額（円）\n（税込）","落札率\n（％）","備　考"]
[1,"中央合同庁舎第6号館A棟照明制御設備部品交換作業等業務の請負　一式","支出負担行為担当官\n　法務省大臣官房会計課長\n　村松　秀樹\n（東京都千代田区霞が関1-1-1）","2024-10-01","株式会社中電工\n東京都新宿区西新宿5-1-1",9240001006971,"本件作業に必要な技術、能力を有する者は契約業者のみであり、競争を許さないため。（会計法第29条の3第4項、予決令第102条の4第3号）",11220000,11220000,{"$f":"IFERROR(ROUNDDOWN(I4/H4,3),\"-\")","v":1},"一括調達（東京地方検察庁、東京保護観察所、出入国在留管理庁、公安調査庁）"]
[2,"戸籍情報連携システム副本管理セグメント（戸籍副本管理システム）の機器更新に伴うLGWAN機器の移設作業の請負　一式","支出負担行為担当官\n　法務省大臣官房会計課長\n　村松　秀樹\n（東京都千代田区霞が関1-1-1）","2024-10-02","ソフトバンク株式会社\n東京都港区海岸1-7-1",9010401052465,"本件作業に必要な技術、能力を有する者は契約業者のみであり、競争を許さないため。（会計法第29条の3第4項、予決令第102条の4第3号）",1814340,1814340,1]
[3,"令和6年度司法書士試験口述試験に係る建物賃貸借契約","支出負担行為担当官代理\n　東京法務局総務部長\n　内古閑　禎二\n（東京都千代田区九段南1-1-15）","2024-10-03","株式会社ティーケーピー\n東京都新宿区市谷八幡町8",7010001105955,"公募を行ったが、応募者なしの結果であり、試験会場条件に合う施設を調査したところ、試験当日に利用可能であると回答したものは契約業者のみであり、競争を許さないため。（会計法第29条の3第4項、予決令第102条の4第3号）",1741374,1669567,0.95799999999999996]
[4,"仙台第3法務総合庁舎吸収冷温水機電装・焼却部品交換業務","支出負担行為担当官\n　仙台法務局長\n　古谷　剛司\n（宮城県仙台市青葉区春日町7-25）","2024-10-04","パナソニック産機システムズ株式会社東北支店\n宮城県仙台市泉区泉中央3-8-3",8010501032913,"当該設備は、契約業者が独自の仕様で設計・開発し、構築したものであり、点検・調整・整備作業を行うには、設備の全体構成並びに機器の構造及び性能を熟知した専門の知識と技術を必要とするため、本件作業の一貫した責任と性能についての保証を持たせることができるのは、契約業者のみである。（会計法第29条の3第4項、予決令第102条の4第3号）",1958000,1958000,1]
[5,"横浜地方検察庁庁用自動車賃貸借契約（3台）","支出負担行為担当官\n　横浜地方検察庁検事正\n　山田　利行\n（神奈川県横浜市中区日本大通9）","2024-10-04","三菱オートリース株式会社\n東京都港区芝5-34-7",2010401028728,"契約の相手方は、当初契約において一般競争入札により落札した者であって、当該物品等を継続して賃貸可能な者は契約の相手方のみであり、競争を許さないため。（会計法第29条の3第4項、予決令第102条の4第3号）",2927760,2927760,1]
[6,"令和6年度土地家屋調査士試験筆記試験に係る建物賃貸借契約","支出負担行為担当官\n　東京法務局長\n　山口　敬之\n（東京都千代田区九段南1-1-15）","2024-10-07","学校法人明治大学\n東京都千代田区神田駿河台1-1",9010005002362,"公募を行ったが、応募者なしの結果であり、試験会場条件に合う施設を調査したところ、試験当日に利用可能であると回答したものは契約業者のみであり、競争を許さないため。（会計法第29条の3第4項、予決令第102条の4第3号）",3232900,3232900,1]
[7,"トルコ向け国費送還の座席手配等に係る業務委託契約","支出負担行為担当官\n　東京出入国在留管理局長\n　宮尾　芳彰\n（東京都港区港南5-5-30）","2024-10-08","有限会社ジーエストラベル\n大阪府大阪市中央区東心斎橋1-13-21",5120002036091,"本件に係る被送還者の送還計画等において、当該送還業務の特殊性を踏まえた送還先までの経由地を含む渡航ルートの選択・調整に適応でき、当局及び航空会社との適格な交渉等が可能なものは契約の相手方以外におらず、競争を許さないため。（会計法第29条の3第4項、予決令第102条の4第3号）",1564050,1564050,1]
[8,"フィリピン共和国向け国費送還の座席手配等に係る業務委託契約","支出負担行為担当官\n　東京出入国在留管理局長\n　宮尾　芳彰\n（東京都港区港南5-5-30）","2024-10-08","株式会社ワールドワイド\n神奈川県横浜市西区浅間町3-165-4",6020001030229,"本件に係る被送還者の送還計画等において、当該送還業務の特殊性を踏まえた送還先までの経由地を含む渡航ルートの選択・調整に適応でき、当局及び航空会社との適格な交渉等が可能なものは契約の相手方以外におらず、競争を許さないため。（会計法第29条の3第4項、予決令第102条の4第3号）",1789000,1789000,1]
[9,"タイ向け国費送還の座席手配等に係る業務委託契約","支出負担行為担当官\n　東京出入国在留管理局長\n　宮尾　芳彰\n（東京都港区港南5-5-30）","2024-10-08","株式会社ワールドワイド\n神奈川県横浜市西区浅間町3-165-4",6020001030229,"本件に係る被送還者の送還計画等において、当該送還業務の特殊性を踏まえた送還先までの経由地を含む渡航ルートの選択・調整に適応でき、当局及び航空会社との適格な交渉等が可能なものは契約の相手方以外におらず、競争を許さないため。（会計法第29条の3第4項、予決令第102条の4第3号）",1980000,1980000,1]
[10,"令和6年度土地家屋調査士試験筆記試験会場の賃貸借契約","支出負担行為担当官\n　仙台法務局長\n　古谷　剛司\n（宮城県仙台市青葉区春日町7-25）","2024-10-09","株式会社教育計画\n宮城県仙台市青葉区中央4-7-22",6370001019526,"公募を実施したが応募者はなく、本件調達目的を達成し得る物件を賃貸借可能な者は契約の相手方のみであり、競争を許さないため（会計法第29条の3第4項、予決令第102条の4第3号）。",927960,927960,{"$f":"IFERROR(ROUNDDOWN(I13/H13,3),\"-\")","v":1}]
[11,"非常電鈴修理契約","支出負担行為担当官\n　赤城少年院長\n　北村　大\n（群馬県前橋市上大屋町60）","2024-10-09","能美防災株式会社群馬営業所\n群馬県高崎市江木町1716",5010001008739,"施設の規律及び秩序の維持のため緊急に更新する必要があったため。（会計法第29条の3第4項、予決令第102条の4第3号）",1167100,1155000,{"$f":"IFERROR(ROUNDDOWN(I14/H14,3),\"-\")","v":0.98899999999999999}]
[12,"航空機内保安要員業務委託（スリランカ航空）","支出負担行為担当官\n　東京出入国在留管理局長\n　宮尾　芳彰\n（東京都港区港南5-5-30）","2024-10-09","スリランカンエアラインズリミテッド\n東京都中央区日本橋堀留町1-10-16",5700150003702,"スリランカ航空を利用した最も効果的な護送支援が可能な者は契約の相手方以外におらず、競争を許さないため。（会計法第29条の3第4項、予決令第102条の4第3号）",1206000,1206000,1]
[13,"FORENSICS589研修の業務委託","支出負担行為担当官\n　最高検察庁検事総長\n　畝本　直美\n（東京都千代田区霞が関1-1-1）","2024-10-10","NRIセキュアテクノロジーズ株式会社\n東京都千代田区大手町1-7-2",8010401084443,"当該研修の実施に必要な技術・能力を有する者が契約の相手方のみであるため。（会計法第29条の3第4項、予決令第102条の4第3号）",1298000,1298000,{"$f":"IFERROR(ROUNDDOWN(I16/H16,3),\"-\")","v":1}]
[14,"登記事務の迅速化に向けた概念的検証実験等委託業務　一式","支出負担行為担当官\n　法務省大臣官房会計課長\n　村松　秀樹\n（東京都千代田区霞が関1-1-1）","2024-10-11","KDDI株式会社\n東京都千代田区大手町1-8-1",9011101031552,"登記事務の更なる迅速化を見据えた業務改革（BPR）及び登記所内のネットワーク構成の検討については、業務の性質上、調達時において要求要件などの仕様内容を具体的に提示することが困難であること、また、業務の実施内容・方法等について、専門的な知見や経験等に基づく提案・評価を経て具体化していくことで、より大きな成果が得られることから、企画競争の方式によることとした（会計法第29条の3第4項、特例政令第12条第1項第1号）。",327047000,123750000,{"$f":"IFERROR(ROUNDDOWN(I17/H17,3),\"-\")","v":0.378},"国庫債務負担行為"]
[15,"東京出入国在留管理局における認証L2SW設定変更作業に係る請負契約","支出負担行為担当官\n　東京出入国在留管理局長\n　宮尾　芳彰\n（東京都港区港南5-5-30）","2024-10-15","株式会社日立製作所デジタルシステム＆サービス営業統括本部公共システム営業統括本部第一営業本部第四営業部\n東京都品川区南大井6-23-1",7010001008844,"契約の相手方がシステムの開発及び運用保守を行っており、競争を許さないため。（会計法第29条の3第4項、予決令第102条の4第3号）",5599770,5599770,1]
[16,"在留外国人に対する必要な情報発信の強化及び生活上の困難を抱えた外国人等へのアウトリーチ支援事業（東日本）委託契約","支出負担行為担当官\n　出入国在留管理庁次長\n　杉山　徳明\n（東京都千代田区霞が関1-1-1）","2024-10-16","特定非営利活動法人国際活動市民中心（CINGA）\n東京都千代田区神田神保町2-3",4012405002772,"本件業務に必要な素養を兼ね備えた者を選定すべく、企画競争を実施した結果、契約の相手方が本件業務に求められる要件を満たしているものと判断されたため。（会計法第29条の3第4項、予決令第102条の4第3号）",1100000,1100000,{"$f":"I19/H19","v":1}]
[17,"航空機内保安要員業務委託（スリランカ航空）","支出負担行為担当官\n　東京出入国在留管理局長\n　宮尾　芳彰\n（東京都港区港南5-5-30）","2024-10-16","スリランカンエアラインズリミテッド\n東京都中央区日本橋堀留町1-10-16",5700150003702,"スリランカ航空を利用した最も効果的な護送支援が可能な者は契約の相手方以外におらず、競争を許さないため。（会計法第29条の3第4項、予決令第102条の4第3号）",1239200,1239200,1]
[18,"トルコ向け国費送還の座席手配等に係る業務委託契約","支出負担行為担当官\n　東京出入国在留管理局長\n　宮尾　芳彰\n（東京都港区港南5-5-30）","2024-10-16","有限会社ジーエストラベル\n大阪府大阪市中央区東心斎橋1-13-21",5120002036091,"本件に係る被送還者の送還計画等において、当該送還業務の特殊性を踏まえた送還先までの経由地を含む渡航ルートの選択・調整に適応でき、当局及び航空会社との適格な交渉等が可能なものは契約の相手方以外におらず、競争を許さないため。（会計法第29条の3第4項、予決令第102条の4第3号）",1486050,1486050,1]
[19,"スリランカ向け国費送還の座席手配等に係る業務委託契約","支出負担行為担当官\n　東京出入国在留管理局長\n　宮尾　芳彰\n（東京都港区港南5-5-30）","2024-10-17","株式会社NDCトラベル\n東京都墨田区江東橋3-3-7",1010601044237,"被送還者の送還計画等において、当該送還業務の特殊性を踏まえた送還先までの経由地を含む渡航ルートの選択・調整に適応でき、当局及び航空会社との適格な交渉等が可能なものは契約の相手方以外におらず、競争を許さないため。（会計法第29条の3第4項、予決令第102条の4第3号）",1000000,1000000,1]
[20,"フィリピン共和国向け国費送還の座席手配等に係る業務委託契約","支出負担行為担当官\n　東京出入国在留管理局長\n　宮尾　芳彰\n（東京都港区港南5-5-30）","2024-10-17","株式会社ワールドワイド\n神奈川県横浜市西区浅間町3-165-4",6020001030229,"本件に係る被送還者の送還計画等において、当該送還業務の特殊性を踏まえた送還先までの経由地を含む渡航ルートの選択・調整に適応でき、当局及び航空会社との適格な交渉等が可能なものは契約の相手方以外におらず、競争を許さないため。（会計法第29条の3第4項、予決令第102条の4第3号）",2377000,2377000,1]
[21,"航空機内保安要員業務委託（スリランカ航空）","支出負担行為担当官\n　東京出入国在留管理局長\n　宮尾　芳彰\n（東京都港区港南5-5-30）","2024-10-17","スリランカンエアラインズリミテッド\n東京都中央区日本橋堀留町1-10-16",5700150003702,"スリランカ航空を利用した最も効果的な護送支援が可能な者は契約の相手方以外におらず、競争を許さないため。（会計法第29条の3第4項、予決令第102条の4第3号）",2412000,2412000,1]
[22,"中国向け国費送還の座席手配等に係る業務委託契約","支出負担行為担当官\n　東京出入国在留管理局長\n　宮尾　芳彰\n（東京都港区港南5-5-30）","2024-10-22","株式会社ワールドワイド\n神奈川県横浜市西区浅間町3-165-4",6020001030229,"本件に係る被送還者の送還計画等において、当該送還業務の特殊性を踏まえた送還先までの経由地を含む渡航ルートの選択・調整に適応でき、当局及び航空会社との適格な交渉等が可能なものは契約の相手方以外におらず、競争を許さないため。（会計法第29条の3第4項、予決令第102条の4第3号）",1354000,1354000,1]
[23,"医薬品等購入契約（ヘムライブラ皮下注射（2本））","支出負担行為担当官\n　神戸少年鑑別所長\n　村中　隆\n（兵庫県神戸市下祗園町40-3）","2024-10-22","I&H株式会社\n兵庫県芦屋市大桝町1-18",2140001112885,"緊急の必要により競争に付することができないため。（会計法第29条の3第4項、予決令第102条の4第3号）",1667620,1667620,{"$f":"IFERROR(ROUNDDOWN(I26/H26,3),\"-\")","v":1}]
[24,"フィリピン共和国向け国費送還の座席手配等に係る業務委託契約","支出負担行為担当官\n　東京出入国在留管理局長\n　宮尾　芳彰\n（東京都港区港南5-5-30）","2024-10-22","株式会社NDCトラベル\n東京都墨田区江東橋3-3-7",1010601044237,"被送還者の送還計画等において、当該送還業務の特殊性を踏まえた送還先までの経由地を含む渡航ルートの選択・調整に適応でき、当局及び航空会社との適格な交渉等が可能なものは契約の相手方以外におらず、競争を許さないため。（会計法第29条の3第4項、予決令第102条の4第3号）",2350000,2350000,1]
[25,"ブラジル・サンパウロ向け護送官付き国費送還の座席手配等請負契約","支出負担行為担当官\n　大阪出入国在留管理局長\n　西山　良\n（大阪府大阪市住之江区南港北1-29-53）","2024-10-22","株式会社ワールドワイド\n神奈川県横浜市西区浅間町3-165-4",6020001030229,"入札公告を行うことで、広く一般に知れ渡ることとなり、送還当日に支障を来すおそれがあるため。（会計法第29条の3第4項、予決令第102条の4第3号）",2879030,2879030,1]
[26,"TTP Information Exchange Systemの整備に係るクラウド環境の提供及び運用保守作業等　一式","支出負担行為担当官\n　出入国在留管理庁次長\n　杉山　徳明\n（東京都千代田区霞が関1-1-1）","2024-10-23","株式会社NTTデータ\n東京都江東区豊洲3-3-3",6010601062093,"TTP Information Exchange System（以下「TIES」という。）は株式会社NTTデータが令和6年3月から開発を開始し、同年内に運用を開始することを目指しているところ、アプリケーション開発事業者と基盤構築事業者を分けた場合、全体の作業効率が低下することとなり、開発スケジュールに大幅な遅延が発生する。また、TIESは運用期間中に、随時改修を行っていく予定であり、米国と協議を進めているところ、運用開始後のアプリケーション改修によってTIESの安定稼動を妨げる重大な障害等が発生した場合、その責任分界点が曖昧になるだけでなく、当該改修に起因する事象か否かなどの判断に時間を要することとなり、迅速な復旧を行うことができない。その結果、審査業務等の混乱や業務停止につながり、ひいては日本及び米国に多大な影響を及ぼすこととなる。\n以上から、アプリケーション開発事業者が当該設計内容を踏まえてそのまま基盤構築を行うことが必須であり、運用開始後のシステムに対する安定稼動を担保しつつ確実にアプリケーション改修を実施可能なのは契約相手方のみであるため。（会計法第29条の3第4項、特例政令第12条第1項第2号）",41584400,41584400,{"$f":"IFERROR(ROUNDDOWN(I29/H29,3),\"-\")","v":1}]
[27,"録音録画アーカイブシステム復旧対応業務委託","支出負担行為担当官\n　岡山地方検察庁検事正\n　花﨑　政之\n（岡山県岡山市北区南方1-8-1）","2024-10-24","日本電気株式会社\n東京都港区芝5-7-1",7010401022916,"当該機器の保守に必要な技術、能力及び保守部品を有する者は契約業者のみであり、競争を許さないため。（会計法第29条の3第4項、予決令第102条の4第3号）",1794100,1794100,{"$f":"IFERROR(ROUNDDOWN(I30/H30,3),\"-\")","v":1}]
[28,"フィリピン共和国向け国費送還の座席手配等に係る業務委託契約","支出負担行為担当官\n　東京出入国在留管理局長\n　宮尾　芳彰\n（東京都港区港南5-5-30）","2024-10-24","株式会社ワールドワイド\n神奈川県横浜市西区浅間町3-165-4",6020001030229,"本件に係る被送還者の送還計画等において、当該送還業務の特殊性を踏まえた送還先までの経由地を含む渡航ルートの選択・調整に適応でき、当局及び航空会社との適格な交渉等が可能なものは契約の相手方以外におらず、競争を許さないため。（会計法第29条の3第4項、予決令第102条の4第3号）",2370000,2370000,1]
[29,"令和6年秋の叙勲等における受章者等拝謁時のバスによる送迎業務の請負　一式","支出負担行為担当官\n　法務省大臣官房会計課長\n　村松　秀樹\n（東京都千代田区霞が関1-1-1）","2024-10-24","株式会社日本レクリェーションセンター\n東京都豊島区東池袋3-1-4",9013301009898,"契約業者と急速に契約しなければ、契約する機会を失い、又は著しく不利な価格をもって契約をしなければならないおそれがあるため。（会計法第29条の3第4項、予決令第102条の4項の4号ニ）",3172840,3172840,{"$f":"IFERROR(ROUNDDOWN(I32/H32,3),\"-\")","v":1}]
[30,"東京出入国在留管理局における業務系ネットワーク設計変更及びLAN配線業務一式に係る請負契約","支出負担行為担当官\n　東京出入国在留管理局長\n　宮尾　芳彰\n（東京都港区港南5-5-30）","2024-10-24","株式会社日立システムズ公共・社会営業統括本部第一営業本部\n東京都品川区大崎1-2-1",6010701025710,"契約の相手方がネットワーク設計をしており、ネットワークの設計変更ができるのは契約の相手方以外におらず競争を許さないため。（会計法第29条の3第4項、予決令第102条の4第3号）",4901600,4901600,1]
[31,"フィリピン向け国費送還の座席手配等に係る業務委託契約","支出負担行為担当官\n　東京出入国在留管理局長\n　宮尾　芳彰\n（東京都港区港南5-5-30）","2024-10-25","株式会社ワールドワイド\n神奈川県横浜市西区浅間町3-165-4",6020001030229,"本件に係る被送還者の送還計画等において、当該送還業務の特殊性を踏まえた送還先までの経由地を含む渡航ルートの選択・調整に適応でき、当局及び航空会社との適格な交渉等が可能なものは契約の相手方以外におらず、競争を許さないため。（会計法第29条の3第4項、予決令第102条の4第3号）",1236000,1236000,1]
[32,"那覇地方法務局宮古島支局パッケージ型空気調和設備機機設置工事","支出負担行為担当官\n　那覇地方法務局長\n　山内　恵\n（沖縄県那覇市樋川1-15-15）","2024-10-25","有限会社吉田産業\n沖縄県宮古島市平良字西里1331-16",8360002022395,"入札を行った結果、不落となったため（会計法第29条の3第5項、予決令第99条の2）。",8420500,8250000,{"$f":"IFERROR(ROUNDDOWN(I35/H35,3),\"-\")","v":0.97899999999999998}]
[33,"戸籍情報連携システムの性能強化（大規模IFS化対応）に伴う機器等の導入及び設定変更等業務　一式","支出負担行為担当官\n　法務省大臣官房会計課長\n　村松　秀樹\n（東京都千代田区霞が関1-1-1）","2024-10-25","株式会社日立製作所\n東京都品川区南大井6-23-1",7010001008844,"本調達で整備する機器等は、既設機器等及び既存契約により設計開発中の機能と一体で運用管理する必要があるところ、追加予定の機能に係る設計・開発及び既存のインターフェイスシステムに支障を生じさせないよう設計・構築し、一体として運用管理・保守を行い得るという条件を満たし適切に業務を実施することができる者は、既設機器等の整備・保守事業者であって、かつ、現に既存契約において実施中の追加機能の設計・開発の受託者である契約業者のみであり、競争を許さないため。（会計法第29条の3第4項、特例政令第12条第1項第2号）",189965432,187988900,{"$f":"IFERROR(ROUNDDOWN(I36/H36,3),\"-\")","v":0.98899999999999999},"保守料を含む。\n本体価格合計\n181,491,200円\n保守料\n6,497,700円"]
[34,"スリランカ向け国費送還の座席手配等に係る業務委託契約","支出負担行為担当官\n　東京出入国在留管理局長\n　宮尾　芳彰\n（東京都港区港南5-5-30）","2024-10-29","株式会社NDCトラベル\n東京都墨田区江東橋3-3-7",1010601044237,"被送還者の送還計画等において、当該送還業務の特殊性を踏まえた送還先までの経由地を含む渡航ルートの選択・調整に適応でき、当局及び航空会社との適格な交渉等が可能なものは契約の相手方以外におらず、競争を許さないため。（会計法第29条の3第4項、予決令第102条の4第3号）",1310000,1310000,1]
[35,"航空機内保安要員業務委託（スリランカ航空）","支出負担行為担当官\n　東京出入国在留管理局長\n　宮尾　芳彰\n（東京都港区港南5-5-30）","2024-10-29","スリランカンエアラインズリミテッド\n東京都中央区日本橋堀留町1-10-16",5700150003702,"スリランカ航空を利用した最も効果的な護送支援が可能な者は契約の相手方以外におらず、競争を許さないため。（会計法第29条の3第4項、予決令第102条の4第3号）",2535800,2535800,1]
[36,"リトアニア向け国費送還の座席手配等に係る業務委託契約","支出負担行為担当官\n　東京出入国在留管理局長\n　宮尾　芳彰\n（東京都港区港南5-5-30）","2024-10-29","有限会社ジーエストラベル\n大阪府大阪市中央区東心斎橋1-13-21",5120002036091,"本件に係る被送還者の送還計画等において、当該送還業務の特殊性を踏まえた送還先までの経由地を含む渡航ルートの選択・調整に適応でき、当局及び航空会社との適格な交渉等が可能なものは契約の相手方以外におらず、競争を許さないため。（会計法第29条の3第4項、予決令第102条の4第3号）",2742000,2742000,1]
[37,"出入国在留管理庁・税関共同キオスクの導入に伴う出入国管理業務個人識別情報システムの改修作業等　一式","支出負担行為担当官\n　出入国在留管理庁次長\n　杉山　徳明\n（東京都千代田区霞が関1-1-1）","2024-10-29","日本電気株式会社\n東京都港区芝5-7-1",7010401022916,"本改修作業は、出入国管理業務個人識別情報システム（以下「J-BIS」という。）に対して行われるものであるところ、何らかの障害が発生した場合、全国における出入国審査業務等に極めて甚大な影響をもたらし、ひいては我が国が標榜する観光立国の推進を揺るがす事態となりかねない。また、J-BISは、要注意人物情報等の極めて秘匿性の高い情報も保有しており、これらの情報へのアクセスは必要最小限に絞り込む必要があるところ、一般競争入札とした場合、要注意人物情報等に対する照合仕様を含むシステムの詳細仕様を開示することとなるため、これを奇貨として、悪意ある渡航者によるシステムの脆弱性を探らせる機会となりかねない。\nよって、本調達は、一般競争入札に馴染まず、また、その実施が可能である事業者は契約相手方のみであるため。（会計法第29条の3第4項、特例政令第12条第1項第1号）",91190000,91190000,{"$f":"IFERROR(ROUNDDOWN(I40/H40,3),\"-\")","v":1}]
[38,"ブラジル・サンパウロ向け護送官付き国費送還の座席手配等請負契約","支出負担行為担当官\n　大阪出入国在留管理局長\n　西山　良\n（大阪府大阪市住之江区南港北1-29-53）","2024-10-30","株式会社ワールドワイド\n神奈川県横浜市西区浅間町3-165-4",6020001030229,"入札公告を行うことで、広く一般に知れ渡ることとなり、送還当日に支障をきたすおそれがあるため。（会計法第29条の3第4項、予決令第102条の4第3号）",2657030,2657030,1]
[39,"中央合同庁舎第6号館A棟交流無停電電源装置修繕作業等業務の請負　一式","支出負担行為担当官\n　法務省大臣官房会計課長\n　村松　秀樹\n（東京都千代田区霞が関1-1-1）","2024-10-31","東芝インフラテクノサービス株式会社\n東京都新宿区西新宿6-24-1",3012401001151,"本件作業に必要な技術、能力を有する者は契約業者のみであり、競争を許さないため。（会計法第29条の3第4項、予決令第102条の4第3号）",2310000,2310000,{"$f":"IFERROR(ROUNDDOWN(I42/H42,3),\"-\")","v":1},"一括調達（東京地方検察庁、東京保護観察所、出入国在留管理庁、公安調査庁）"]
[40,"特定登録者情報システムの更改に伴う外国人出入国情報システムの対応作業","支出負担行為担当官\n　出入国在留管理庁次長\n　杉山　徳明\n（東京都千代田区霞が関1-1-1）","2024-10-31","株式会社日立製作所\n東京都千代田区丸の内1-6-6",7010001008844,"特定登録者情報システム（以下「TTPシステム」という）は外国人出入国情報システム（以下「FEIS」という。）と連携し、要注意人物情報に係る照合を行っているところ、FEISが保有している要注意人物情報は、厳格な出入国審査実施に必要不可欠な秘匿性の高い情報であり、当該情報へのアクセスは必要最小限に絞り込まなければならない。\nもし、本調達を一般競争入札とする場合、FEIS及びTTPシステムの詳細仕様を公開することとなるが、これを奇貨として、悪意ある第三者によるシステムの脆弱性を探らせる機会となりかねず、また、悪意ある第三者から脆弱性を秘匿するために、FEISの詳細仕様を公開しないまま一般競争入札を行っても競争性を担保することができない。\nよって、本調達は、一般競争入札に馴染まず、また、FEISの開発事業者である日立製作所以外の事業者がFEISの動作確認を行うのは困難であることから、その実施が可能である事業者は契約相手方のみであるため。（会計法第29条の3第4項、特例政令第12条第1項第1号）",66959200,66959200,{"$f":"IFERROR(ROUNDDOWN(I43/H43,3),\"-\")","v":1}]